bitfinex-derivatives/quotes_SOLF0:USTF0_20241105
["timestamp","ask_amount","ask_price","bid_price","bid_amount"]
[1730812923686,2.1485,162.96,162.95,500.0]
[1730812925682,7.54197592,162.98,162.95,500.0]
[1730812925888,2.1484,162.97,162.95,500.0]
[1730812926390,2.1485,162.96,162.95,500.0]
[1730812927793,7.54197592,162.98,162.95,500.0]
[1730812927980,2.1484,162.97,162.95,502.1486]
[1730812928889,7.54197592,162.98,162.95,502.1486]
[1730812929096,9.69027592,162.98,162.95,502.1486]
[1730812929395,7.54197592,162.98,162.95,502.1486]
[1730812930282,2.1483,162.97,162.95,500.0]
[1730812932889,5.1681,162.99,162.96,2.1485]
[1730812933285,3.02,163.0,162.97,7.54197592]
[1730812933485,3.02,163.01,162.97,7.54197592]
[1730812933891,5.1679,163.01,162.98,2.1481]
[1730812934488,3.02,163.01,162.99,7.54197592]
[1730812935101,3.02,163.01,163.0,2.1479]
[1730812935303,8.95047506,163.15,163.0,7.54197592]
[1730812935599,7.54197592,163.08,163.02,7.54197592]
[1730812935802,3.02,163.07,163.04,7.54197592]
[1730812935990,3.02,163.08,163.04,7.54197592]
[1730812936197,5.167,163.08,163.04,9.68927592]
[1730812936500,3.10416069,163.17,163.07,7.54197592]
[1730812936699,3.02,163.16,163.09,7.54197592]
[1730812937003,7.54197592,163.14,163.09,7.54197592]
[1730812937302,7.54197592,163.11,163.04,3.02]
[1730812937602,9.68877592,163.09,163.04,9.68927592]
[1730812937796,7.54197592,163.08,163.03,1.4002]
[1730812937998,7.54197592,163.08,163.03,8.94217592]
[1730812938199,2.147,163.08,163.03,11.08957592]
[1730812938402,3.02,163.11,163.06,7.54197592]
[1730812939199,1.2758,163.22,163.1,7.54197592]
[1730812939402,3.02,163.15,163.1,7.54197592]
[1730812939591,10.56197592,163.15,163.1,7.54197592]
[1730812940296,7.54197592,163.17,163.12,7.54197592]
[1730812940597,3.02,163.17,163.12,7.54197592]
[1730812940901,3.02,163.17,163.13,2.1462]
[1730812941295,3.02,163.17,163.12,7.54197592]
[1730812941296,2.1459,163.16,163.12,2.1464]
[1730812943196,3.02,163.17,163.1,4.1143]
[1730812943396,2.1461,163.15,163.11,2.1465]
[1730812944399,2.1461,163.14,163.1,6.2609]
[1730812944603,3.02,163.17,163.1,4.1143]
[1730812945199,2.146,163.15,163.1,4.1143]
[1730812945396,3.02,163.17,163.1,4.1143]
[1730812945899,3.02,163.17,163.1,2.735]
[1730812946298,3.02,163.16,163.1,2.735]
[1730812948506,2.1462,163.13,163.1,2.735]
[1730812948706,2.1462,163.13,163.1,4.8816]
[1730812950706,3.02,163.16,163.13,2.1462]
[1730812950913,14.79820368,163.19,163.13,2.1462]
[1730812951408,2.1458,163.17,163.13,2.1462]
[1730812951797,2.1462,163.14,163.1,2.735]
[1730812952001,3.11171736,163.25,163.06,1.3132]
[1730812952002,14.79820368,163.15,163.06,1.3132]
[1730812952208,3.02,163.14,163.06,3.4603]
[1730812952407,3.02,163.14,163.06,1.3132]
[1730812953211,2.1463,163.13,163.1,2.1465]
[1730812954410,11.77820368,163.17,163.12,2.1462]
[1730812954411,2.146,163.16,163.12,2.1462]
[1730812955223,3.02,163.19,163.14,2.1461]
[1730812955407,11.77820368,163.22,163.14,2.1461]
[1730812955604,3.02,163.19,163.14,2.1461]
[1730812956009,2.1458,163.17,163.14,2.1461]
[1730812956206,3.02,163.19,163.12,1.3626]
[1730812956207,3.02,163.19,163.13,2.1462]
[1730812958112,2.1458,163.17,163.13,2.1462]
[1730812958309,3.02,163.19,163.13,2.1462]
[1730812959309,2.1459,163.16,163.13,2.1462]
[1730812969810,2.1459,163.16,163.13,9.68227898]
[1730812973913,7.53607898,163.18,163.13,7.53607898]
[1730812975526,3.02,163.19,163.13,7.53607898]
[1730812975926,4.2891,163.27,163.16,7.53607898]
[1730812976123,4.05759716,163.26,163.17,7.53607898]
[1730812976424,6.4316,163.32,163.17,7.53607898]
[1730812976425,3.02,163.25,163.17,7.53607898]
[1730812976622,7.53607898,163.24,163.17,7.53607898]
[1730812976814,10.55607898,163.24,163.17,7.53607898]
[1730812977215,2.1453,163.21,163.18,2.1455]
[1730812977421,7.53607898,163.22,163.17,7.53607898]
[1730812977630,7.53607898,163.21,163.13,3.02]
[1730812977819,2.146,163.15,163.12,4.7856]
[1730812978121,7.53607898,163.18,163.12,10.17547898]
[1730812978326,2.1461,163.15,163.12,8.89867898]
[1730812979227,2.1461,163.15,163.12,11.04497898]
[1730812980715,7.53607898,163.18,163.12,11.04497898]
[1730812980923,2.1459,163.16,163.12,11.04497898]
[1730812981229,10.55607898,163.19,163.14,9.68217898]
[1730812981426,3.07065604,163.29,163.17,7.53607898]
[1730812981723,44.14,163.43,163.26,9.68057898]
[1730812981929,7.53607898,163.33,163.26,7.53607898]
[1730812982229,2.1439,163.31,163.26,7.53607898]
[1730812982829,2.1439,163.31,163.27,2.1444]
[1730812983232,2.1439,163.31,163.26,7.53607898]
[1730812984335,2.1439,163.31,163.26,9.68057898]
[1730812984518,2.1437,163.32,163.26,7.53607898]
[1730812984725,3.02,163.33,163.28,7.53607898]
[1730812985028,3.02,163.33,163.28,9.68027898]
[1730812985528,2.144,163.31,163.27,7.52876055]
[1730812985935,2.144,163.3,163.25,13.90718832]
[1730812987124,2.98870869,163.4,163.25,13.90718832]
[1730812987433,11.76268832,163.4,163.28,11.76268832]
[1730812987628,2.1436,163.34,163.28,11.76268832]
[1730812987929,2.1436,163.34,163.28,13.90678832]
[1730812988131,2.1436,163.34,163.29,3.02]
[1730812989839,2.1436,163.34,163.29,5.1641]
[1730812990525,2.1434,163.35,163.3,2.1439]
[1730812990729,3.02,163.37,163.29,3.02]
[1730812991030,2.1436,163.33,163.29,2.1441]
[1730812991229,14.78268832,163.37,163.28,3.0]
[1730812991733,2.1438,163.32,163.28,3.0]
[1730812992131,2.144,163.31,163.27,3.4217]
[1730812992335,2.144,163.31,163.27,6.4217]
[1730812992742,2.144,163.31,163.27,3.4217]
[1730812993031,14.78268832,163.37,163.27,1.2774]
[1730812993235,2.1441,163.3,163.27,1.2774]
[1730812993432,3.0,163.33,163.26,2.6411]
[1730812993940,2.1443,163.28,163.26,2.6411]
[1730812995626,2.1444,163.27,163.22,3.0]
[1730812995826,3.0,163.33,163.22,2.1449]
[1730812996030,11.76268832,163.31,163.21,14.76268832]
[1730812996230,2.1446,163.26,163.21,14.76268832]
[1730812996529,2.1446,163.26,163.22,2.145]
[1730812997536,2.1446,163.26,163.23,2.1449]
[1730812997841,2.1446,163.26,163.21,14.76268832]
[1730812998039,2.1446,163.26,163.21,11.76268832]
[1730812998940,2.1446,163.26,163.23,2.1449]
[1730813000833,2.1446,163.26,163.22,2.145]
[1730813002442,2.1443,163.28,163.23,11.76268832]
[1730813002735,3.0,163.31,163.23,11.76268832]
[1730813003042,2.1445,163.27,163.23,13.90758832]
[1730813003431,3.0,163.31,163.23,11.76268832]
[1730813003636,2.1446,163.26,163.23,11.76268832]
[1730813006741,2.1446,163.26,163.22,13.90768832]
[1730813007354,2.1446,163.26,163.22,13.90891033]
[1730813008050,2.1446,163.26,163.24,7.52903703]
[1730813009738,7.52903703,163.3,163.24,7.52903703]
[1730813009946,2.1446,163.26,163.24,7.52903703]
[1730813010441,3.0,163.27,163.2,2.6342]
[1730813010647,7.52903703,163.26,163.21,7.52903703]
[1730813010848,7.52903703,163.24,163.19,8.90833703]
[1730813011045,2.1453,163.2,163.18,7.52903703]
[1730813011942,2.1452,163.21,163.18,9.67463703]
[1730813012645,2.1452,163.21,163.19,7.52903703]
[1730813013052,113.83905367,163.79,163.19,7.52903703]
[1730813013053,2.1446,163.26,163.22,2.145]
[1730813013355,3.0,163.26,163.21,7.52903703]
[1730813013651,2.1449,163.24,163.21,7.52903703]
[1730813014847,2.1449,163.24,163.21,9.67413703]
[1730813022560,4.2867,163.35,163.23,7.52903703]
[1730813022761,32.67579749,163.43,163.26,7.52903703]
[1730813023061,2.1439,163.31,163.28,2.1442]
[1730813023258,2.1439,163.31,163.28,9.67323703]
[1730813024048,3.0,163.33,163.28,9.67323703]
[1730813024254,2.144,163.3,163.28,7.52903703]
[1730813027062,3.0,163.33,163.24,3.0]
[1730813027265,3.0,163.36,163.31,7.52903703]
[1730813027762,3.0,163.37,163.24,3.0]
[1730813027962,7.52903703,163.36,163.31,7.52903703]
[1730813028157,2.1436,163.34,163.31,9.67273703]
[1730813029669,2.1437,163.32,163.28,9.67313703]
[1730813029858,7.52903703,163.34,163.28,7.52903703]
[1730813030252,2.1438,163.32,163.28,9.67333703]
[1730813030567,7.52903703,163.34,163.28,9.67333703]
[1730813030753,2.1437,163.33,163.28,7.52903703]
[1730813030952,7.52903703,163.34,163.29,2.1441]
[1730813031151,7.52903703,163.34,163.28,7.52903703]
[1730813031356,2.1437,163.33,163.28,7.52903703]
[1730813031562,7.52903703,163.34,163.28,7.52903703]
[1730813032070,2.144,163.31,163.28,7.52903703]
[1730813032469,7.52903703,163.34,163.28,9.67323703]
[1730813033068,3.0,163.33,163.28,7.52903703]
[1730813033360,7.52903703,163.32,163.26,7.52903703]
[1730813034472,2.1443,163.28,163.26,7.52903703]
[1730813034660,7.52903703,163.32,163.26,7.52903703]
[1730813034975,2.1444,163.28,163.25,10.26803703]
[1730813035165,2.1444,163.28,163.25,8.92643703]
[1730813035467,2.1445,163.26,163.25,8.92643703]
[1730813035864,7.52903703,163.28,163.23,7.52903703]
[1730813036464,7.52903703,163.28,163.23,9.67393703]
[1730813036666,2.1446,163.26,163.23,9.67393703]
[1730813039067,7.52903703,163.28,163.23,7.52903703]
[1730813039271,7.52903703,163.27,163.22,7.52903703]
[1730813040863,2.1447,163.25,163.22,9.67403703]
[1730813041170,3.0,163.29,163.24,7.52903703]
[1730813041570,2.1444,163.27,163.24,7.52903703]
[1730813042073,2.1444,163.27,163.24,9.67383703]
[1730813042372,2.1445,163.26,163.24,7.52903703]
[1730813043570,2.1445,163.26,163.23,9.67393703]
[1730813045167,7.52903703,163.28,163.23,7.52903703]
[1730813045372,2.1447,163.25,163.23,7.52903703]
[1730813045573,2.1447,163.25,163.22,2.145]
[1730813046368,7.52903703,163.23,163.16,7.52903703]
[1730813046570,10.52903703,163.23,163.16,7.52903703]
[1730813046965,2.1454,163.2,163.18,7.52903703]
[1730813047877,2.1454,163.2,163.17,9.67473703]
[1730813048074,2.1456,163.19,163.17,7.52903703]
[1730813048281,7.52903703,163.18,163.15,1.3661]
[1730813048971,7.52903703,163.18,163.13,2.6207]
[1730813049367,2.1457,163.17,163.14,7.52903703]
[1730813050877,7.52903703,163.18,163.14,7.52903703]
[1730813051077,2.1458,163.17,163.14,7.52903703]
[1730813051976,2.1458,163.17,163.14,1007.52903703]
[1730813052566,7.52903703,163.18,163.14,1000.0]
[1730813052791,7.52903703,163.17,163.14,1000.0]
[1730813053174,2.146,163.15,163.14,1000.0]
[1730813055575,9.67503703,163.15,163.14,1000.0]
[1730813059080,7.52903703,163.17,163.14,1000.0]
[1730813059282,9.67483703,163.17,163.14,1000.0]
[1730813060079,7.52903703,163.17,163.14,1000.0]
[1730813060278,29.68057929,163.25,163.14,1000.0]
[1730813060586,3.0,163.24,163.14,1007.52903703]
[1730813060779,2.1454,163.2,163.17,2.1457]
[1730813061185,10.52903703,163.21,163.16,7.52903703]
[1730813061480,7.52903703,163.21,163.17,1.3008]
[1730813061675,7.52903703,163.21,163.18,2.1455]
[1730813062276,7.52903703,163.22,163.17,1.3008]
[1730813062884,9.67403703,163.22,163.19,2.1454]
[1730813063483,7.52903703,163.22,163.2,2.1452]
[1730813065790,2.1449,163.23,163.2,2.1452]
[1730813066885,7.52903703,163.22,163.2,2.1452]
[1730813067080,7.52903703,163.21,163.17,1.3008]
[1730813067281,7.52903703,163.2,163.17,1.3008]
[1730813067684,9.67443703,163.2,163.17,1.3008]
[1730813067885,3.0,163.21,163.17,1.3008]
[1730813068782,5.1453,163.21,163.17,1.3008]
[1730813069688,9.67433703,163.2,163.17,3.4465]
[1730813071590,2.1455,163.19,163.17,1.3008]
[1730813071983,2.1455,163.19,163.16,2.1458]
[1730813071984,7.52903703,163.18,163.14,1000.0]
[1730813072591,9.67463703,163.18,163.15,2.146]
[1730813073185,7.52903703,163.18,163.14,1000.0]
[1730813073492,7.52903703,163.16,163.14,1002.1461]
[1730813075391,9.67483703,163.17,163.14,1002.1461]
[1730813077788,2.146,163.15,163.14,1000.0]
[1730813078289,7.52903703,163.16,163.14,1000.0]
[1730813078598,9.67493703,163.16,163.14,1000.0]
[1730813081197,2.146,163.15,163.14,1000.0]
[1730813082199,9.67503703,163.15,163.14,1000.0]
[1730813085701,2.146,163.15,163.14,1000.0]
[1730813091507,7.52903703,163.16,163.14,1000.0]
[1730813091708,10.52903703,163.17,163.14,1000.0]
[1730813092306,12.67473703,163.17,163.14,1002.1461]
[1730813093708,10.52903703,163.17,163.14,1002.1461]
[1730813093904,2.1459,163.16,163.14,1002.1461]
[1730813097107,2.1459,163.16,163.14,1000.0]
[1730813097309,9.67493703,163.16,163.14,1000.0]
[1730813098716,7.52903703,163.16,163.14,1000.0]
[1730813098922,2.146,163.15,163.14,1000.0]
[1730813101824,3.0,163.18,163.14,1000.0]
[1730813102527,5.1456,163.18,163.15,2.1459]
[1730813102823,5.1456,163.18,163.14,1000.0]
[1730813103019,9.67453703,163.19,163.14,1007.52903703]
[1730813103225,3.0,163.21,163.16,7.52903703]
[1730813103429,10.52903703,163.21,163.16,7.52903703]
[1730813103929,2.1454,163.2,163.17,2.1457]
[1730813104427,10.52903703,163.21,163.16,7.52903703]
[1730813104629,3.0,163.21,163.16,7.52903703]
[1730813104817,7.52903703,163.21,163.16,7.52903703]
[1730813105222,3.0,163.22,163.16,7.52903703]
[1730813105523,2.1453,163.21,163.18,2.1455]
[1730813106427,12.67413703,163.22,163.19,2.1454]
[1730813106628,10.52903703,163.22,163.19,2.1454]
[1730813107429,12.67413703,163.22,163.19,2.1454]
[1730813110525,29.68057929,163.25,163.2,2.1452]
[1730813110526,2.1449,163.24,163.2,2.1452]
[1730813110732,7.52903703,163.23,163.18,7.52903703]
[1730813112220,2.1451,163.22,163.19,2.1454]
[1730813114033,44.12,163.39,163.19,7.52903703]
[1730813114228,7.52903703,163.28,163.22,7.52903703]
[1730813114624,3.0,163.29,163.23,2.7138]
[1730813114829,2.1443,163.28,163.25,2.1445]
[1730813115532,7.52903703,163.29,163.24,2.1447]
[1730813115735,7.52903703,163.3,163.25,7.52903703]
[1730813116222,7.52903703,163.3,163.27,2.1443]
[1730813116822,7.52903703,163.3,163.25,7.52903703]
[1730813117033,7.52903703,163.3,163.27,2.1444]
[1730813120630,7.52903703,163.29,163.24,1.3665]
[1730813120835,7.52903703,163.28,163.23,2.7138]
[1730813121437,7.52903703,163.28,163.25,1002.1445]
[1730813121744,9.67333703,163.28,163.25,1002.1445]
[1730813122037,7.52903703,163.28,163.25,1000.0]
[1730813122447,9.67333703,163.28,163.25,1000.0]
[1730813123036,7.52903703,163.29,163.25,1000.0]
[1730813123240,9.67323703,163.29,163.25,1002.1445]
[1730813125138,9.67323703,163.29,163.25,1000.0]
[1730813125347,9.67293703,163.31,163.25,1000.0]
[1730813125643,7.52903703,163.31,163.25,1000.0]
[1730813126340,2.144,163.3,163.27,2.1443]
[1730813126936,2.1437,163.33,163.29,2.144]
[1730813127143,7.52903703,163.31,163.26,7.52903703]
[1730813127738,7.52903703,163.31,163.28,2.1442]
[1730813128540,9.67293703,163.31,163.28,2.1442]
[1730813136249,7.52903703,163.31,163.26,7.52903703]
[1730813137043,2.144,163.3,163.27,2.1443]
[1730813137650,2.144,163.3,163.26,7.52903703]
[1730813137846,2.144,163.3,163.28,1000.0]
[1730813138151,7.52903703,163.31,163.28,1000.0]
[1730813138450,9.67293703,163.31,163.28,1002.1442]
[1730813143654,3.0,163.34,163.28,1000.0]
[1730813143655,7.52903703,163.29,163.28,1000.0]
[1730813143857,9.67313703,163.29,163.28,1000.0]
[1730813144061,2.1441,163.29,163.28,1000.0]
[1730813144353,9.67313703,163.29,163.28,1000.0]
[1730813145056,12.67313703,163.3,163.28,1000.0]
[1730813145552,10.52903703,163.3,163.28,1000.0]
[1730813145746,9.67313703,163.29,163.28,1000.0]
[1730813153659,2.1441,163.29,163.28,1000.0]
[1730813155059,7.52903703,163.32,163.28,1002.1442]
[1730813155760,2.1439,163.31,163.28,1002.1442]
[1730813155958,7.52903703,163.32,163.29,2.1441]
[1730813156661,2.1439,163.31,163.28,1002.1442]
[1730813158963,7.52903703,163.32,163.28,1000.0]
[1730813159162,7.52903703,163.32,163.29,2.144]
[1730813160266,9.67283703,163.32,163.29,2.144]
[1730813160666,3.0,163.33,163.28,1000.0]
[1730813160866,7.52903703,163.32,163.3,2.1439]
[1730813161161,5.1437,163.33,163.3,2.1439]
[1730813161463,12.67273703,163.33,163.3,2.1439]
[1730813163165,29.59324847,163.37,163.29,2.7123]
[1730813163357,2.1435,163.34,163.29,2.7123]
[1730813164364,2.1435,163.34,163.31,2.1439]
[1730813164562,9.67243703,163.35,163.29,2.7123]
[1730813164764,7.52903703,163.35,163.29,2.7123]
[1730813164961,7.52903703,163.35,163.31,2.1437]
[1730813165162,2.1436,163.34,163.31,2.1437]
[1730813167366,3.0,163.36,163.3,1000.0]
[1730813167573,2.1434,163.35,163.32,2.1437]
[1730813168066,2.1435,163.34,163.32,2.1437]
[1730813169073,7.52903703,163.41,163.33,7.52903703]
[1730813169269,7.52903703,163.41,163.35,7.52903703]
[1730813169973,2.1429,163.39,163.35,9.67223703]
[1730813170267,2.1429,163.39,163.35,7.52903703]
[1730813170572,9.67193703,163.39,163.35,2.1432]
[1730813170872,9.67193703,163.39,163.34,7.52903703]
[1730813172072,1.266,163.47,163.35,7.52903703]
[1730813172267,3.0,163.46,163.36,1.2656]
[1730813172468,7.52903703,163.41,163.36,1.2656]
[1730813172973,2.1428,163.4,163.37,2.143]
[1730813173870,7.52903703,163.39,163.3,1000.0]
[1730813174173,7.52903703,163.37,163.32,7.52903703]
[1730813175271,9.67223703,163.37,163.33,2.1435]
[1730813177078,2.1432,163.37,163.33,9.67253703]
[1730813177576,2.1432,163.37,163.34,2.1434]
[1730813177975,2.1431,163.37,163.33,7.52903703]
[1730813178170,2.1431,163.37,163.34,2.1435]
[1730813179969,2.1429,163.39,163.35,2.1433]
[1730813180175,3.0,163.4,163.34,7.52903703]
[1730813180478,7.52903703,163.4,163.34,7.52903703]
[1730813181177,9.67173703,163.4,163.37,2.143]
[1730813181373,7.52903703,163.4,163.34,7.52903703]
[1730813181983,9.67173703,163.4,163.36,2.1431]
[1730813182281,9.67173703,163.4,163.35,7.52903703]
[1730813182785,9.67173703,163.4,163.36,2.1431]
[1730813183378,2.1428,163.39,163.36,2.1431]
[1730813184475,2.1426,163.41,163.37,9.67203703]
[1730813185672,10.52903703,163.43,163.37,9.67203703]
[1730813185877,2.1427,163.41,163.37,9.67203703]
[1730813186184,10.52903703,163.43,163.37,9.67203703]
[1730813186485,2.1427,163.41,163.37,9.67203703]
[1730813187379,2.1427,163.41,163.38,1.295]
[1730813188979,2.1427,163.4,163.37,2.143]
[1730813189173,9.67173703,163.4,163.37,2.143]
[1730813189373,2.1427,163.4,163.37,2.143]
[1730813191780,2.1427,163.4,163.37,1002.143]
[1730813192188,7.52903703,163.42,163.37,1000.0]
[1730813192484,2.1426,163.41,163.38,2.1429]
[1730813193877,2.1427,163.4,163.37,1002.143]
[1730813194084,9.67173703,163.4,163.37,1002.143]
[1730813194587,9.67173703,163.4,163.37,1000.16991291]
[1730813199098,2.1429,163.39,163.37,998.02691291]
[1730813199401,7.52903703,163.4,163.37,998.02691291]
[1730813199900,9.67183703,163.4,163.37,1000.17001291]
[1730813200095,7.52903703,163.4,163.37,998.02691291]
[1730813200294,7.52903703,163.39,163.37,998.02691291]
[1730813200593,9.67193703,163.38,163.37,995.92311291]
[1730813200799,9.67193703,163.38,163.37,992.99371291]
[1730813201002,9.67193703,163.38,163.37,992.95721291]
[1730813203096,9.67193703,163.38,163.37,913.22036472]
[1730813205797,9.67193703,163.38,163.37,847.73712725]
[1730813208807,9.67193703,163.38,163.37,782.25388978]
[1730813211199,9.67193703,163.38,163.37,768.00027906]
[1730813211505,9.67193703,163.38,163.37,737.62573092]
[1730813211809,12.67193703,163.38,163.37,593.52093159]
[1730813212805,12.67193703,163.38,163.37,473.86960015]
[1730813213111,12.67193703,163.38,163.37,368.47187943]
[1730813214106,12.67193703,163.38,163.37,355.94933129]
[1730813214415,12.67193703,163.38,163.37,341.69572057]
[1730813214710,12.67193703,163.38,163.37,317.24225268]
[1730813215412,12.67193703,163.38,163.37,302.98864196]
[1730813217216,12.67193703,163.38,163.37,276.2124831]
[1730813217712,12.67193703,163.38,163.37,251.75901521]
[1730813218414,12.67193703,163.38,163.37,237.50540449]
[1730813220119,12.67193703,163.38,163.37,210.72924563]
[1730813220714,12.67193703,163.38,163.37,186.27577774]
[1730813221220,12.67193703,163.38,163.37,172.02216702]
[1730813221423,12.67193703,163.38,163.37,157.7685563]
[1730813226133,12.67193703,163.38,163.37,92.28531883]
[1730813228532,5.1429,163.38,163.37,92.28531883]
[1730813228730,12.67193703,163.38,163.37,92.28531883]
[1730813229231,12.65193703,163.38,163.37,26.80208136]
[1730813230627,5.1229,163.38,163.37,26.80208136]
[1730813230928,12.65193703,163.38,163.37,26.80208136]
[1730813232126,2.1439,163.32,163.3,1.2997]
[1730813232331,5.1239,163.32,163.3,1.2997]
[1730813234120,44.08,163.46,163.31,7.52903703]
[1730813234328,7.52903703,163.43,163.36,7.52903703]
[1730813234527,2.98,163.45,163.37,1.3726]
[1730813234732,7.52903703,163.43,163.37,1.3726]
[1730813234933,7.52903703,163.41,163.37,1.3726]
[1730813235132,2.1429,163.38,163.37,1.3726]
[1730813236435,2.98,163.4,163.37,1.3726]
[1730813237340,2.1429,163.39,163.37,1.3726]
[1730813239435,2.98,163.4,163.37,1.3726]
[1730813239632,0.8768,163.4,163.37,8.90163703]
[1730813240043,0.8768,163.4,163.37,11.04473703]
[1730813240236,0.8768,163.4,163.37,8.90163703]
[1730813244140,2.98,163.41,163.38,7.52903703]
[1730813244336,44.08,163.46,163.38,7.52903703]
[1730813244533,10.50903703,163.45,163.4,7.52903703]
[1730813244742,2.1424,163.42,163.4,7.52903703]
[1730813245837,1.3941,163.54,163.41,7.52903703]
[1730813246043,1.3941,163.54,163.43,7.52903703]
[1730813246044,7.52903703,163.48,163.43,7.52903703]
[1730813246443,2.1418,163.47,163.43,7.52903703]
[1730813246647,7.52903703,163.48,163.43,7.52903703]
[1730813246648,2.98,163.46,163.43,7.52903703]
[1730813247043,2.98,163.46,163.44,7.52903703]
[1730813247540,7.52903703,163.5,163.44,7.52903703]
[1730813247744,2.98,163.49,163.44,7.52903703]
[1730813247940,7.52903703,163.5,163.44,7.52903703]
[1730813248145,2.98,163.49,163.45,1.3431]
[1730813248845,2.1417,163.48,163.45,1.3431]
[1730813249949,2.98,163.49,163.45,1.3431]
[1730813250143,2.1418,163.47,163.45,1.3431]
[1730813251044,2.98,163.49,163.46,7.52903703]
[1730813251445,2.98,163.49,163.47,7.52903703]
[1730813251647,7.52903703,163.52,163.47,7.52903703]
[1730813251648,2.98,163.5,163.47,7.52903703]
[1730813252055,2.98,163.5,163.45,8.87213703]
[1730813252350,2.98,163.5,163.45,1.3431]
[1730813253042,2.1418,163.47,163.45,1.3431]
[1730813253239,2.1418,163.47,163.44,7.52903703]
[1730813253240,2.98,163.5,163.44,10.05722476]
[1730813253440,2.142,163.45,163.44,10.05722476]
[1730813254045,5.1219,163.46,163.44,10.05722476]
[1730813255846,2.142,163.45,163.44,10.05722476]
[1730813256945,2.98,163.46,163.41,7.52903703]
[1730813257153,2.1422,163.44,163.41,7.52903703]
[1730813257352,2.98,163.46,163.41,7.52903703]
[1730813258254,2.1421,163.45,163.41,7.52903703]
[1730813259747,2.98,163.46,163.41,7.52903703]
[1730813260050,7.52903703,163.44,163.4,2.592]
[1730813260654,2.1425,163.42,163.4,2.592]
[1730813260853,5.1225,163.42,163.4,2.592]
[1730813263051,2.98,163.42,163.4,10.12103703]
[1730813264457,5.1225,163.42,163.4,10.12103703]
[1730813265552,5.1225,163.42,163.4,2.592]
[1730813265852,10.50903703,163.42,163.33,2.98]
[1730813266056,2.98,163.42,163.39,7.52903703]
[1730813266446,2.1426,163.41,163.38,9.90247767]
[1730813266652,2.98,163.42,163.39,7.52903703]
[1730813267756,5.1225,163.42,163.39,7.52903703]
[1730813268063,5.1225,163.42,163.4,7.52903703]
[1730813268762,2.98,163.42,163.4,7.52903703]
[1730813269058,2.98,163.42,163.41,7.52903703]
[1730813269463,2.1423,163.43,163.41,7.52903703]
[1730813271755,2.1423,163.43,163.4,7.52903703]
[1730813282368,2.98,163.44,163.38,2.1429]
[1730813282672,2.98,163.44,163.36,2.1431]
[1730813282673,7.52903703,163.43,163.36,2.1431]
[1730813282873,7.52903703,163.43,163.37,7.52903703]
[1730813283576,2.1426,163.41,163.37,7.52903703]
[1730813283760,2.1426,163.41,163.38,7.52903703]
[1730813284162,2.1425,163.42,163.4,7.52903703]
[1730813284368,2.98,163.44,163.4,7.52903703]
[1730813285272,2.1424,163.43,163.4,7.52903703]
[1730813290770,5.1224,163.43,163.4,7.52903703]
[1730813291883,2.1424,163.42,163.4,7.52903703]
[1730813292673,2.1426,163.41,163.38,7.52903703]
[1730813295574,2.98,163.43,163.38,7.52903703]
[1730813295781,2.1424,163.42,163.4,7.52903703]
[1730813296288,2.98,163.43,163.3,1.3662]
[1730813296470,2.98,163.43,163.34,7.52903703]
[1730813296471,3.9576,163.42,163.34,7.52903703]
[1730813296782,2.1432,163.36,163.34,7.52903703]
[1730813297378,2.1431,163.37,163.34,7.52903703]
[1730813298177,2.98,163.38,163.34,7.52903703]
[1730813298376,5.123,163.38,163.34,7.52903703]
[1730813299089,5.123,163.38,163.34,9.67243703]
[1730813299476,5.123,163.38,163.35,7.52903703]
[1730813299672,2.1422,163.44,163.37,7.52903703]
[1730813299875,2.98,163.44,163.41,7.52903703]
[1730813300481,5.1222,163.44,163.41,7.52903703]
[1730813301278,2.98,163.44,163.36,1.3059]
[1730813301478,2.1423,163.43,163.41,7.52903703]
[1730813302483,5.1222,163.44,163.41,7.52903703]
[1730813302881,2.98,163.44,163.41,7.52903703]
[1730813303183,2.98,163.44,163.42,7.52903703]
[1730813303983,1.3351,163.48,163.42,7.52903703]
[1730813304185,2.98,163.47,163.42,7.52903703]